[Event "44th Chess Olympiad Open 2022"]
[Site "Chennai"]
[Date "2022.07.31"]
[Round "3.65"]
[White "Bobby Ballah"]
[Black "Ribbegren, Karl Johan"]
[Result "0-1"]
[WhiteElo "1916"]
[BlackElo "2198"]
[Annotator "RC"]
[PlyCount "158"]
[EventDate "2022.??.??"]
[TimeControl "60"]

1. e4 {[%emt 0:00:17]} g6 {[%emt 0:00:23]} 2. d4 {[%emt 0:00:24]} d6 {[%emt 0:
00:00]} 3. Nc3 {[%emt 0:02:40]} c6 {[%emt 0:01:21]} 4. f4 {[%emt 0:02:20]} d5 {
[%emt 0:03:37]} 5. e5 {[%emt 0:00:49]} Nh6 {[%emt 0:03:51]} 6. Nf3 {[%emt 0:00:
00]} Bg4 {[%emt 0:01:50]} 7. Be2 {[%emt 0:00:17]} e6 {[%emt 0:00:46]} 8. O-O {
[%emt 0:01:03]} Nf5 {[%emt 0:01:44]} 9. Ng5 {[%emt 0:02:38]} Bxe2 {[%emt 0:00:
00]} 10. Nxe2 {[%emt 0:00:09]} h6 {[%emt 0:04:12]} 11. Nf3 {[%emt 0:00:53]} h5
{[%emt 0:01:02]} 12. Qd3 {[%emt 0:12:24]} Qb6 {[%emt 0:12:59]} 13. c3 {[%emt 0:
00:00]} Be7 {[%emt 0:05:26]} 14. Ng5 {[%emt 0:02:52]} Nd7 {[%emt 0:02:41]} 15.
Kh1 {[%emt 0:05:15]} h4 {[%emt 0:05:31]} 16. Ng1 {[%emt 0:05:21]} c5 {[%emt 0:
00:00]} 17. N1f3 {[%emt 0:03:20]} Rc8 {[%emt 0:05:47]} 18. Be3 {[%emt 0:08:32]}
Kf8 {[%emt 0:02:38]} 19. b3 {[%emt 0:11:01]} Kg7 {[%emt 0:08:01]} 20. Bf2 {
[%emt 0:05:42]} a6 {[%emt 0:05:24]} 21. dxc5 {[%emt 0:04:14]} Bxc5 {[%emt 0:00:
00]} 22. Nd4 {[%emt 0:01:35]} Bxd4 {[%emt 0:05:30]} 23. Bxd4 {[%emt 0:00:34]}
Qa5 {[%emt 0:01:42]} 24. Rfc1 {[%emt 0:07:05]} Qa3 {[%emt 0:02:56]} 25. Rc2 {
[%emt 0:03:40]} Nc5 {[%emt 0:00:32]} 26. Bxc5 {[%emt 0:00:55]} Qxc5 {[%emt 0:
00:00]} 27. c4 {[%emt 0:01:11]} b5 {[%emt 0:03:10]} 28. Rac1 {[%emt 0:01:05]}
bxc4 {[%emt 0:00:41]} 29. bxc4 {[%emt 0:00:15]} Ne3 {[%emt 0:00:39]} 30. Rc3 {
[%emt 0:04:13]} d4 {[%emt 0:02:18]} 31. Rb3 {[%emt 0:01:15]} h3 {[%emt 0:02:16]
} 32. Ne4 {[%emt 0:01:35]} hxg2+ {[%emt 0:00:51]} 33. Kg1 {[%emt 0:00:06]} Qe7
{[%emt 0:00:58]} 34. Nf6 {[%emt 0:02:02]} Qc5 {[%emt 0:02:11]} 35. Rb7 {
[%emt 0:01:38]} Rh3 {[%emt 0:00:57]} 36. Ne4 {[%emt 0:01:35]} Qc6 {[%emt 0:00:
00]} 37. Rxf7+ {[%emt 0:00:16]} Kxf7 {[%emt 0:00:35]} 38. Ng5+ {[%emt 0:00:03]}
Kg7 {[%emt 0:00:09]} 39. Nxh3 {[%emt 0:00:09]} Rf8 {[%emt 0:02:43]} 40. Qxd4 {
[%emt 0:02:36]} Qf3 {[%emt 0:00:24]} 41. Qd7+ {[%emt 0:30:05]} Kh6 {[%emt 0:00:
00]} 42. Qh7+ {[%emt 0:00:08]} Kxh7 {[%emt 0:00:08]} 43. Ng5+ {[%emt 0:00:03]}
Kg8 {[%emt 0:00:54]} 44. Nxf3 {[%emt 0:00:06]} Rxf4 {[%emt 0:00:00]} 45. Kf2 {
[%emt 0:00:00]} Nxc4 {[%emt 0:00:00]} 46. Kxg2 {[%emt 0:00:00]} Re4 {[%emt 0:
00:00]} 47. Kg3 {[%emt 0:00:00]} Nxe5 {[%emt 0:00:00]} 48. Rc5 {[%emt 0:00:00]}
Nxf3 {[%emt 0:00:00]} 49. Kxf3 {[%emt 0:00:00]} Ra4 {[%emt 0:00:00]} 50. Rc2 {
[%emt 0:00:00]} Kf7 {[%emt 0:00:00]} 51. Re2 {[%emt 0:00:00]} Kf6 {[%emt 0:00:
00]} 52. Rc2 {[%emt 0:00:00]} Kf5 {[%emt 0:00:00]} 53. Ke3 {[%emt 0:00:00]} g5
{[%emt 0:00:00]} 54. Rf2+ {[%emt 0:00:00]} Ke5 {[%emt 0:00:00]} 55. Rc2 {
[%emt 0:00:00]} Ra3+ {[%emt 0:00:00]} 56. Ke2 {[%emt 0:00:00]} Rh3 {[%emt 0:00:
00]} 57. Kf1 {[%emt 0:00:00]} Ke4 {[%emt 0:00:00]} 58. Rc6 {[%emt 0:00:00]} e5
{[%emt 0:00:00]} 59. Rxa6 {[%emt 0:00:00]} Rxh2 {[%emt 0:00:00]} 60. Ra4+ {
[%emt 0:00:00]} Kf3 {[%emt 0:00:00]} 61. Ra3+ {[%emt 0:00:00]} Kf4 {[%emt 0:00:
00]} 62. Ra8 {[%emt 0:00:00]} g4 {[%emt 0:00:00]} 63. Kg1 {[%emt 0:04:05]} Rb2
{[%emt 0:00:00]} 64. Ra3 {[%emt 0:01:05]} e4 {[%emt 0:00:00]} 65. Kf1 {[%emt 0:
00:00]} g3 {[%emt 0:00:00]} 66. Kg1 {[%emt 0:00:24]} Rf2 {[%emt 0:02:04]} 67.
Ra8 {[%emt 0:01:05]} e3 {[%emt 0:00:57]} 68. Rf8+ {[%emt 0:00:17]} Ke4 {
[%emt 0:00:21]} 69. Re8+ {[%emt 0:01:02]} Kd4 {[%emt 0:00:19]} 70. Rd8+ {
[%emt 0:00:14]} Kc3 {[%emt 0:01:21]} 71. Rg8 {[%emt 0:00:46]} Rxa2 {[%emt 0:00:
00]} 72. Rxg3 {[%emt 0:00:44]} Kd2 {[%emt 0:00:50]} 73. Rg8 {[%emt 0:00:19]}
Kd1 {[%emt 0:01:37]} 74. Rd8+ {[%emt 0:00:49]} Rd2 {[%emt 0:00:58]} 75. Ra8 {
[%emt 0:00:18]} Ke2 {[%emt 0:01:53]} 76. Re8 {[%emt 0:01:39]} Rd5 {[%emt 0:00:
00]} 77. Rg8 {[%emt 0:01:20]} Rf5 {[%emt 0:00:17]} 78. Rg7 {[%emt 0:00:59]} Ke1
{[%emt 0:00:42]} 79. Re7 {[%emt 0:00:57]} Rg5+ {[%emt 0:00:22]} 0-1

[Event "44th Chess Olympiad Open 2022"]
[Site "Chennai"]
[Date "2022.07.31"]
[Round "3.65"]
[White "Joel O. Ebiekuta"]
[Black "Van Hoolandt, Patrick"]
[Result "1-0"]
[WhiteElo "1848"]
[BlackElo "2044"]
[Annotator "NA RC"]
[PlyCount "125"]
[EventDate "2022.??.??"]
[TimeControl "60"]

1. e4 {[%emt 0:01:25]} e5 {[%emt 0:00:07]} 2. Nf3 {[%emt 0:00:08]} Nc6 {
[%emt 0:00:05]} 3. Bb5 {[%emt 0:00:10]} Nf6 {[%emt 0:00:16]} 4. O-O {[%emt 0:
00:00]} Nxe4 {[%emt 0:00:07]} 5. Re1 {[%emt 0:00:18]} Nd6 {[%emt 0:00:06]} 6.
Nxe5 {[%emt 0:02:44]} Be7 {[%emt 0:00:07]} 7. Bf1 {[%emt 0:02:09]} Nxe5 {
[%emt 0:06:06]} 8. Rxe5 {[%emt 0:01:33]} O-O {[%emt 0:00:38]} 9. d4 {[%emt 0:
00:00]} Bf6 {[%emt 0:03:20]} 10. Re1 {[%emt 0:02:54]} Nf5 {[%emt 0:01:57]} 11.
c3 {[%emt 0:00:28]} d5 {[%emt 0:05:05]} 12. Nd2 {[%emt 0:02:45]} c6 {[%emt 0:
00:00]} 13. Nf3 {[%emt 0:13:22]} Be6 {[%emt 0:11:10]} 14. Bf4 {[%emt 0:06:23]}
Re8 {[%emt 0:02:04]} 15. Qc2 {[%emt 0:03:49]} Nh4 {[%emt 0:04:38]} 16. Nxh4 {
[%emt 0:06:55]} Bxh4 {[%emt 0:00:09]} 17. Bd3 {[%emt 0:00:11]} h6 {[%emt 0:00:
00]} 18. Re3 {[%emt 0:01:52]} Bd7 {[%emt 0:10:22]} 19. Rae1 {[%emt 0:05:47]}
Rxe3 {[%emt 0:07:55]} 20. Rxe3 {[%emt 0:00:33]} Qf8 {[%emt 0:02:29]} 21. Qb3 {
[%emt 0:03:35]} b6 {[%emt 0:09:10]} 22. Qd1 {[%emt 0:00:09]} Re8 {[%emt 0:00:
00]} 23. Qh5 {[%emt 0:05:05]} Rxe3 {[%emt 0:02:11]} 24. Bxe3 {[%emt 0:01:01]}
Qe7 {[%emt 0:00:53]} 25. g3 {[%emt 0:00:53]} Bg5 {[%emt 0:00:45]} 26. Bxg5 {
[%emt 0:04:41]} Qxg5 {[%emt 0:00:09]} 27. Qxg5 {[%emt 0:00:41]} hxg5 {[%emt 0:
00:00]} 28. f3 {[%emt 0:00:19]} Kf8 {[%emt 0:03:49]} 29. Kf2 {[%emt 0:00:12]}
Ke7 {[%emt 0:00:20]} 30. Ke3 {[%emt 0:00:15]} Kf6 {[%emt 0:01:22]} 31. g4 {
[%emt 0:01:44]} Bc8 {[%emt 0:03:10]} 32. Bc2 {[%emt 0:01:39]} Ba6 {[%emt 0:00:
00]} 33. Ba4 {[%emt 0:02:06]} Bb7 {[%emt 0:00:24]} 34. b4 {[%emt 0:00:38]} g6 {
[%emt 0:00:49]} 35. Bc2 {[%emt 0:01:25]} Ke6 {[%emt 0:01:39]} 36. f4 {[%emt 0:
00:00]} gxf4+ {[%emt 0:01:28]} 37. Kxf4 {[%emt 0:00:17]} Kf6 {[%emt 0:01:29]}
38. h4 {[%emt 0:00:24]} Bc8 {[%emt 0:00:54]} 39. Bd3 {[%emt 0:00:53]} Bd7 {
[%emt 0:00:34]} 40. Be2 {[%emt 0:01:39]} a5 {[%emt 0:00:49]} 41. bxa5 {[%emt 0:
00:00]} bxa5 {[%emt 0:30:04]} 42. g5+ {[%emt 0:01:28]} Ke7 {[%emt 0:00:19]} 43.
Ke5 {[%emt 0:00:41]} Bh3 {[%emt 0:00:00]} 44. a3 {[%emt 0:00:00]} Be6 {[%emt 0:
00:00]} 45. Ba6 {[%emt 0:00:00]} Bg4 {[%emt 0:00:00]} 46. Bd3 {[%emt 0:00:00]}
Bc8 {[%emt 0:00:00]} 47. Be2 {[%emt 0:00:00]} Bb7 {[%emt 0:00:00]} 48. Bd1 {
[%emt 0:00:00]} Bc8 {[%emt 0:00:00]} 49. Bb3 {[%emt 0:00:00]} Bd7 {[%emt 0:00:
00]} 50. c4 {[%emt 0:00:00]} dxc4 {[%emt 0:00:00]} 51. Bxc4 {[%emt 0:00:00]}
Bh3 {[%emt 0:00:00]} 52. d5 {[%emt 0:00:00]} cxd5 {[%emt 0:00:00]} 53. Kxd5 {
[%emt 0:00:00]} f5 {[%emt 0:00:00]} 54. Be2 {[%emt 0:00:00]} Bg2+ {[%emt 0:00:
00]} 55. Ke5 {[%emt 0:00:00]} Kf7 {[%emt 0:01:53]} 56. h5 {[%emt 0:00:00]} Kg7
{[%emt 0:00:01]} 57. h6+ {[%emt 0:00:48]} Kh7 {[%emt 0:00:00]} 58. Bc4 {
[%emt 0:00:33]} Be4 {[%emt 0:00:42]} 59. Kf6 {[%emt 0:03:18]} Bc2 {[%emt 0:00:
00]} 60. Bd5 {[%emt 0:01:17]} a4 {[%emt 0:02:28]} 61. Bc6 {[%emt 0:01:54]} Bd3
{[%emt 0:04:31]} 62. Bxa4 {[%emt 0:00:55]} Be4 {[%emt 0:00:26]} 63. Be8 {
[%emt 0:00:20]} 1-0

[Event "44th Chess Olympiad Open 2022"]
[Site "Chennai"]
[Date "2022.07.31"]
[Round "3.66"]
[White "Kawuma, Patrick"]
[Black "Alegre, Fabio Costa"]
[Result "1-0"]
[WhiteElo "2270"]
[BlackElo "1809"]
[Annotator "RC"]
[PlyCount "82"]
[EventDate "2022.??.??"]
[TimeControl "60"]

1. c4 {[%emt 0:02:06]} e6 {[%emt 0:00:06]} 2. Nc3 {[%emt 0:01:48]} Nf6 {
[%emt 0:00:13]} 3. e4 {[%emt 0:00:10]} d5 {[%emt 0:00:04]} 4. e5 {[%emt 0:00:
00]} d4 {[%emt 0:00:07]} 5. exf6 {[%emt 0:01:43]} dxc3 {[%emt 0:00:07]} 6. bxc3
{[%emt 0:00:39]} Qxf6 {[%emt 0:00:10]} 7. Nf3 {[%emt 0:02:05]} b6 {[%emt 0:00:
00]} 8. Be2 {[%emt 0:03:33]} Bb7 {[%emt 0:00:34]} 9. d4 {[%emt 0:09:06]} h6 {
[%emt 0:01:18]} 10. a4 {[%emt 0:04:16]} c5 {[%emt 0:03:08]} 11. a5 {[%emt 0:00:
00]} Bd6 {[%emt 0:04:22]} 12. O-O {[%emt 0:10:20]} O-O {[%emt 0:00:24]} 13. Rb1
{[%emt 0:00:50]} Be4 {[%emt 0:05:06]} 14. axb6 {[%emt 0:00:44]} Bxb1 {[%emt 0:
00:00]} 15. b7 {[%emt 0:00:07]} Be4 {[%emt 0:00:15]} 16. bxa8=Q {[%emt 0:00:44]
} Bxa8 {[%emt 0:00:31]} 17. Be3 {[%emt 0:00:32]} Rd8 {[%emt 0:04:40]} 18. Qa4 {
[%emt 0:02:05]} Qe7 {[%emt 0:00:20]} 19. Ra1 {[%emt 0:01:54]} Rd7 {[%emt 0:00:
00]} 20. Qb5 {[%emt 0:15:07]} Rb7 {[%emt 0:04:54]} 21. Qa4 {[%emt 0:03:27]} Rc7
{[%emt 0:02:36]} 22. Rd1 {[%emt 0:06:21]} Nd7 {[%emt 0:01:51]} 23. Qa2 {
[%emt 0:01:33]} Be4 {[%emt 0:01:17]} 24. Nd2 {[%emt 0:00:45]} Bg6 {[%emt 0:00:
00]} 25. Qa6 {[%emt 0:05:40]} e5 {[%emt 0:01:32]} 26. Nf3 {[%emt 0:00:45]} e4 {
[%emt 0:01:50]} 27. Nd2 {[%emt 0:01:38]} Kh7 {[%emt 0:02:14]} 28. Nb3 {[%emt 0:
00:00]} f5 {[%emt 0:10:48]} 29. dxc5 {[%emt 0:01:11]} Be5 {[%emt 0:00:57]} 30.
Bd4 {[%emt 0:05:27]} Nb8 {[%emt 0:02:31]} 31. Qa2 {[%emt 0:03:02]} f4 {[%emt 0:
00:00]} 32. Bf1 {[%emt 0:02:56]} Nd7 {[%emt 0:05:19]} 33. Qd2 {[%emt 0:01:52]}
Qg5 {[%emt 0:03:12]} 34. Re1 {[%emt 0:06:22]} e3 {[%emt 0:00:35]} 35. fxe3 {
[%emt 0:00:41]} f3 {[%emt 0:00:37]} 36. Qf2 {[%emt 0:01:25]} Rc6 {[%emt 0:00:
00]} 37. Nd2 {[%emt 0:00:42]} Bh5 {[%emt 0:00:48]} 38. Bd3+ {[%emt 0:00:27]} g6
{[%emt 0:02:14]} 39. Be4 {[%emt 0:00:32]} Rxc5 {[%emt 0:00:12]} 40. Bxf3 {
[%emt 0:00:35]} Bxd4 {[%emt 0:01:40]} 41. cxd4 {[%emt 0:01:48]} Rf5 {[%emt 0:
00:00]} 1-0

[Event "44th Chess Olympiad Open 2022"]
[Site "Chennai"]
[Date "2022.07.31"]
[Round "3.66"]
[White "Egesa emmanuel"]
[Black "Lima, Osvaldo Dos Santos"]
[Result "1-0"]
[WhiteElo "2152"]
[BlackElo "1863"]
[Annotator "ChessBase"]
[PlyCount "41"]
[EventDate "2022.??.??"]
[TimeControl "60"]

1. d4 {[%emt 0:02:26]} g6 {[%emt 0:01:35]} 2. e4 {[%emt 0:02:33]} Bg7 {[%emt 0:
00:00]} 3. Be3 {[%emt 0:03:13]} d6 {[%emt 0:00:12]} 4. Nc3 {[%emt 0:01:50]} Nf6
{[%emt 0:00:10]} 5. Qd2 {[%emt 0:02:12]} O-O {[%emt 0:01:05]} 6. O-O-O {
[%emt 0:00:20]} a6 {[%emt 0:00:39]} 7. Bh6 {[%emt 0:02:06]} b5 {[%emt 0:00:27]}
8. f3 {[%emt 0:00:34]} b4 {[%emt 0:03:48]} 9. Nce2 {[%emt 0:01:04]} a5 {
[%emt 0:00:02]} 10. h4 {[%emt 0:00:28]} Nc6 {[%emt 0:02:17]} 11. h5 {[%emt 0:
00:00]} Bxh6 {[%emt 0:04:17]} 12. Qxh6 {[%emt 0:00:22]} e5 {[%emt 0:00:32]} 13.
g4 {[%emt 0:04:20]} Bxg4 {[%emt 0:01:51]} 14. hxg6 {[%emt 0:02:05]} Bd7 {
[%emt 0:02:05]} 15. g7 {[%emt 0:02:14]} Re8 {[%emt 0:00:13]} 16. Nh3 {[%emt 0:
00:00]} Nxe4 {[%emt 0:04:40]} 17. fxe4 {[%emt 0:00:38]} Re6 {[%emt 0:00:03]}
18. Qh5 {[%emt 0:01:12]} Rg6 {[%emt 0:02:43]} 19. Rg1 {[%emt 0:06:35]} Qf6 {
[%emt 0:09:54]} 20. Rg2 {[%emt 0:02:49]} Rg4 21. Rxg4 {[%emt 0:00:29]} 1-0

[Event "44th Chess Olympiad Open 2022"]
[Site "Chennai"]
[Date "2022.07.31"]
[Round "3.66"]
[White "Pereira, Sergio Murilo de Ar"]
[Black "Wanyama, Harold"]
[Result "0-1"]
[WhiteElo "2093"]
[BlackElo "2242"]
[Annotator "RC"]
[PlyCount "87"]
[EventDate "2022.??.??"]
[TimeControl "60"]

1. e4 {[%emt 0:00:43]} c5 {[%emt 0:00:17]} 2. c3 {[%emt 0:00:41]} Nf6 {[%emt 0:
00:00]} 3. e5 {[%emt 0:00:36]} Nd5 {[%emt 0:00:13]} 4. d4 {[%emt 0:00:44]} cxd4
{[%emt 0:00:26]} 5. Nf3 {[%emt 0:00:47]} e6 {[%emt 0:00:16]} 6. cxd4 {[%emt 0:
00:00]} Qc7 {[%emt 0:00:54]} 7. Bd2 {[%emt 0:03:22]} b6 {[%emt 0:02:16]} 8. Nc3
{[%emt 0:03:03]} Nxc3 {[%emt 0:01:15]} 9. Bxc3 {[%emt 0:06:35]} Bb7 {[%emt 0:
00:00]} 10. Bd3 {[%emt 0:00:19]} d6 {[%emt 0:01:46]} 11. O-O {[%emt 0:01:09]}
Nd7 {[%emt 0:00:13]} 12. Rc1 {[%emt 0:06:46]} Qd8 {[%emt 0:03:13]} 13. Bb4 {
[%emt 0:13:17]} dxe5 {[%emt 0:00:57]} 14. Bxf8 {[%emt 0:00:16]} Kxf8 {[%emt 0:
00:00]} 15. Bb5 {[%emt 0:05:13]} exd4 {[%emt 0:01:25]} 16. Qxd4 {[%emt 0:04:01]
} Bxf3 {[%emt 0:05:25]} 17. Qxd7 {[%emt 0:01:26]} Qxd7 {[%emt 0:01:28]} 18.
Bxd7 {[%emt 0:00:08]} Bd5 {[%emt 0:00:05]} 19. Bc6 {[%emt 0:10:28]} Bxc6 {
[%emt 0:04:09]} 20. Rxc6 {[%emt 0:00:06]} g6 {[%emt 0:06:00]} 21. Rc7 {[%emt 0:
00:00]} Kg7 {[%emt 0:00:00]} 22. Re1 {[%emt 0:01:07]} Rhc8 {[%emt 0:00:00]} 23.
Rb7 {[%emt 0:00:27]} Rc2 {[%emt 0:00:00]} 24. g3 {[%emt 0:05:16]} Rxb2 {
[%emt 0:00:50]} 25. Rxe6 {[%emt 0:00:00]} Rxa2 {[%emt 0:00:07]} 26. Ree7 {
[%emt 0:00:00]} Rf8 {[%emt 0:00:06]} 27. Rxa7 {[%emt 0:00:00]} Rxa7 {[%emt 0:
00:00]} 28. Rxa7 {[%emt 0:00:00]} Rb8 {[%emt 0:00:05]} 29. Kf1 {[%emt 0:00:00]}
b5 {[%emt 0:00:43]} 30. Ke2 {[%emt 0:02:17]} b4 {[%emt 0:01:06]} 31. Kd2 {
[%emt 0:00:00]} b3 {[%emt 0:02:50]} 32. Ra1 {[%emt 0:05:47]} Rc8 {[%emt 0:00:
00]} 33. Rb1 {[%emt 0:03:13]} Rc2+ {[%emt 0:00:10]} 34. Ke3 {[%emt 0:00:11]} b2
{[%emt 0:00:08]} 35. h4 {[%emt 0:02:31]} h5 {[%emt 0:00:48]} 36. f3 {[%emt 0:
00:00]} Rh2 {[%emt 0:03:25]} 37. Kf4 {[%emt 0:00:44]} Kf6 {[%emt 0:03:58]} 38.
Re1 {[%emt 0:01:11]} Rc2 {[%emt 0:00:57]} 39. Rb1 {[%emt 0:00:08]} Rc4+ {
[%emt 0:00:41]} 40. Ke3 {[%emt 0:00:07]} Rc3+ {[%emt 0:00:17]} 41. Ke4 {
[%emt 0:30:57]} Rb3 {[%emt 0:30:29]} 42. Kf4 {[%emt 0:01:31]} Rb4+ {[%emt 0:00:
00]} 43. Ke3 {[%emt 0:00:05]} Ke5 {[%emt 0:00:06]} 44. f4+ {[%emt 0:01:05]} 0-1

[Event "44th Chess Olympiad Open 2022"]
[Site "Chennai"]
[Date "2022.07.31"]
[Round "3.66"]
[White "Espirito Santo, Waldyr"]
[Black "Okas, Walter"]
[Result "0-1"]
[WhiteElo "1922"]
[BlackElo "2191"]
[Annotator "RC"]
[PlyCount "62"]
[EventDate "2022.??.??"]
[TimeControl "60"]

1. e4 {[%emt 0:00:07]} c6 {[%emt 0:00:11]} 2. d4 {[%emt 0:00:25]} d5 {[%emt 0:
00:00]} 3. Nd2 {[%emt 0:01:40]} dxe4 {[%emt 0:00:46]} 4. Nxe4 {[%emt 0:00:30]}
Nf6 {[%emt 0:00:13]} 5. Nxf6+ {[%emt 0:00:21]} exf6 {[%emt 0:00:05]} 6. Bc4 {
[%emt 0:03:17]} Bd6 {[%emt 0:00:12]} 7. Ne2 {[%emt 0:01:00]} O-O {[%emt 0:00:
00]} 8. Be3 {[%emt 0:02:56]} Nd7 {[%emt 0:01:31]} 9. Nc3 {[%emt 0:03:41]} f5 {
[%emt 0:04:01]} 10. Qf3 {[%emt 0:03:12]} Qa5 {[%emt 0:11:02]} 11. O-O-O {
[%emt 0:03:43]} Nf6 {[%emt 0:03:06]} 12. h3 {[%emt 0:02:45]} Bd7 {[%emt 0:00:
00]} 13. d5 {[%emt 0:06:14]} c5 {[%emt 0:01:01]} 14. Bd2 {[%emt 0:06:08]} Qc7 {
[%emt 0:02:19]} 15. Bg5 {[%emt 0:05:33]} Ne4 {[%emt 0:01:25]} 16. Nxe4 {
[%emt 0:00:42]} fxe4 {[%emt 0:00:03]} 17. Qxe4 {[%emt 0:00:48]} b5 {[%emt 0:00:
00]} 18. Bd3 {[%emt 0:01:21]} f5 {[%emt 0:00:13]} 19. Qh4 {[%emt 0:02:09]} c4 {
[%emt 0:00:07]} 20. Be2 {[%emt 0:00:57]} c3 {[%emt 0:00:34]} 21. b3 {[%emt 0:
00:00]} a5 {[%emt 0:00:52]} 22. Kb1 {[%emt 0:01:17]} b4 {[%emt 0:01:58]} 23.
Qc4 {[%emt 0:01:34]} Qb7 {[%emt 0:00:14]} 24. Bf4 {[%emt 0:01:35]} Rfc8 {
[%emt 0:04:44]} 25. Bxd6 {[%emt 0:06:58]} Rxc4 {[%emt 0:00:05]} 26. Bxc4 {
[%emt 0:00:30]} Bb5 {[%emt 0:02:10]} 27. Rhe1 {[%emt 0:21:11]} a4 {[%emt 0:00:
00]} 28. Re7 {[%emt 0:02:29]} Qa6 {[%emt 0:00:04]} 29. Be5 {[%emt 0:02:10]}
axb3 {[%emt 0:02:32]} 30. Rxg7+ {[%emt 0:03:09]} Kf8 {[%emt 0:01:08]} 31. Bxb3
{[%emt 0:00:59]} Qa3 {[%emt 0:00:36]} 0-1

[Event "44th Chess Olympiad Open 2022"]
[Site "Chennai"]
[Date "2022.07.31"]
[Round "3.67"]
[White "Harper, Ryan"]
[Black "Lau, Lut Yin Luke"]
[Result "1/2-1/2"]
[WhiteElo "2208"]
[BlackElo "2027"]
[Annotator "RC"]
[PlyCount "62"]
[EventDate "2022.??.??"]
[TimeControl "60"]

1. e4 {[%emt 0:00:03]} e5 {[%emt 0:00:45]} 2. Nf3 {[%emt 0:00:07]} Nf6 {
[%emt 0:00:10]} 3. Nxe5 {[%emt 0:00:21]} d6 {[%emt 0:00:06]} 4. Nf3 {[%emt 0:
00:00]} Nxe4 {[%emt 0:00:05]} 5. Qe2 {[%emt 0:00:06]} Qe7 {[%emt 0:00:14]} 6.
d3 {[%emt 0:00:30]} Nf6 {[%emt 0:00:09]} 7. Bg5 {[%emt 0:00:07]} Qxe2+ {
[%emt 0:01:15]} 8. Bxe2 {[%emt 0:00:07]} Be7 {[%emt 0:00:13]} 9. Nc3 {[%emt 0:
00:00]} h6 {[%emt 0:01:26]} 10. Bh4 {[%emt 0:02:11]} O-O {[%emt 0:04:43]} 11.
O-O-O {[%emt 0:01:20]} c6 {[%emt 0:08:09]} 12. h3 {[%emt 0:00:45]} Nbd7 {
[%emt 0:01:49]} 13. g4 {[%emt 0:03:46]} Nc5 {[%emt 0:07:46]} 14. Bg3 {[%emt 0:
00:00]} Re8 {[%emt 0:02:16]} 15. Nd4 {[%emt 0:01:11]} Bf8 {[%emt 0:01:16]} 16.
f4 {[%emt 0:20:57]} Ne6 {[%emt 0:08:32]} 17. Nxe6 {[%emt 0:03:42]} Bxe6 {
[%emt 0:01:13]} 18. Bf3 {[%emt 0:00:25]} d5 {[%emt 0:02:35]} 19. f5 {[%emt 0:
00:00]} Bd7 {[%emt 0:00:25]} 20. Bf4 {[%emt 0:04:25]} Bc5 {[%emt 0:07:36]} 21.
d4 {[%emt 0:11:05]} Bb4 {[%emt 0:06:38]} 22. Be5 {[%emt 0:00:33]} Bxc3 {
[%emt 0:07:20]} 23. bxc3 {[%emt 0:00:11]} Ne4 {[%emt 0:01:01]} 24. Bxe4 {
[%emt 0:00:15]} dxe4 {[%emt 0:00:01]} 25. c4 {[%emt 0:03:48]} f6 {[%emt 0:00:
00]} 26. Bf4 {[%emt 0:04:37]} Kf7 {[%emt 0:01:27]} 27. Rhe1 {[%emt 0:02:47]} h5
{[%emt 0:03:21]} 28. Kd2 {[%emt 0:07:34]} hxg4 {[%emt 0:03:57]} 29. hxg4 {
[%emt 0:00:03]} g6 {[%emt 0:00:29]} 30. Rh1 {[%emt 0:11:20]} Rh8 {[%emt 0:00:
00]} 31. g5 {[%emt 0:02:58]} fxg5 {[%emt 0:03:17]} 1/2-1/2

[Event "44th Chess Olympiad Open 2022"]
[Site "Chennai"]
[Date "2022.07.31"]
[Round "3.67"]
[White "Deng, Yu Dong Michael"]
[Black "Mc Intosh, Isaiah"]
[Result "1-0"]
[WhiteElo "2028"]
[BlackElo "2215"]
[Annotator "RC"]
[PlyCount "109"]
[EventDate "2022.??.??"]
[TimeControl "60"]

1. d4 {[%emt 0:00:06]} d5 {[%emt 0:00:05]} 2. c4 {[%emt 0:00:07]} e6 {[%emt 0:
00:00]} 3. Nc3 {[%emt 0:00:08]} Nf6 {[%emt 0:00:06]} 4. cxd5 {[%emt 0:00:08]}
exd5 {[%emt 0:00:06]} 5. Bg5 {[%emt 0:00:08]} c6 {[%emt 0:00:05]} 6. e3 {
[%emt 0:00:08]} h6 {[%emt 0:00:27]} 7. Bh4 {[%emt 0:00:21]} Be7 {[%emt 0:00:07]
} 8. Bd3 {[%emt 0:00:47]} O-O {[%emt 0:00:11]} 9. Qc2 {[%emt 0:00:18]} Re8 {
[%emt 0:00:08]} 10. Nge2 {[%emt 0:00:06]} Nbd7 {[%emt 0:01:45]} 11. O-O {
[%emt 0:00:06]} Ne4 {[%emt 0:04:21]} 12. Bxe7 {[%emt 0:01:56]} Qxe7 {[%emt 0:
00:00]} 13. Rab1 {[%emt 0:02:41]} Ndf6 {[%emt 0:06:20]} 14. b4 {[%emt 0:13:53]}
Ng4 {[%emt 0:09:07]} 15. Nxe4 {[%emt 0:23:22]} dxe4 {[%emt 0:05:35]} 16. Bc4 {
[%emt 0:00:12]} b5 {[%emt 0:19:37]} 17. Bb3 {[%emt 0:00:46]} Qd6 {[%emt 0:00:
00]} 18. Ng3 {[%emt 0:02:18]} Be6 {[%emt 0:00:30]} 19. Rfc1 {[%emt 0:06:17]}
Bxb3 {[%emt 0:00:50]} 20. Rxb3 {[%emt 0:01:14]} Re6 {[%emt 0:00:07]} 21. Rc3 {
[%emt 0:23:27]} a5 {[%emt 0:03:08]} 22. bxa5 {[%emt 0:01:17]} Rxa5 {[%emt 0:00:
00]} 23. h3 {[%emt 0:00:37]} Nf6 {[%emt 0:00:17]} 24. Rc5 {[%emt 0:03:27]} Ra4
{[%emt 0:08:22]} 25. Nf5 {[%emt 0:06:07]} Qd7 {[%emt 0:00:34]} 26. g4 {[%emt 0:
00:00]} Ra6 {[%emt 0:08:01]} 27. Re5 {[%emt 0:05:01]} Qe8 {[%emt 0:15:43]} 28.
Nd6 {[%emt 0:01:09]} Qe7 {[%emt 0:00:18]} 29. Nf5 {[%emt 0:02:49]} Qd8 {
[%emt 0:03:34]} 30. Rxe6 {[%emt 0:01:10]} fxe6 {[%emt 0:00:07]} 31. Qb3 {
[%emt 0:00:26]} Nd5 {[%emt 0:05:34]} 32. Ng3 {[%emt 0:00:10]} Qh4 {[%emt 0:00:
00]} 33. Kg2 {[%emt 0:01:12]} b4 {[%emt 0:01:35]} 34. Qc4 {[%emt 0:00:58]} Qf6
{[%emt 0:01:41]} 35. Nxe4 {[%emt 0:02:51]} Qg6 {[%emt 0:00:17]} 36. Nf6+ {
[%emt 0:00:41]} gxf6 {[%emt 0:00:30]} 37. Qxa6 {[%emt 0:00:02]} Qe4+ {[%emt 0:
00:00]} 38. Kh2 {[%emt 0:00:49]} Qf3 {[%emt 0:01:26]} 39. Qf1 {[%emt 0:01:01]}
Nc3 {[%emt 0:01:33]} 40. Rc2 {[%emt 0:01:03]} Qd5 {[%emt 0:00:43]} 41. Qg2 {
[%emt 0:30:39]} Qb5 {[%emt 0:30:12]} 42. f3 {[%emt 0:00:00]} e5 {[%emt 0:00:00]
} 43. Qd2 {[%emt 0:00:00]} e4 {[%emt 0:00:00]} 44. fxe4 {[%emt 0:00:00]} Qb8+ {
[%emt 0:00:00]} 45. Kg2 {[%emt 0:00:00]} Nxe4 {[%emt 0:00:00]} 46. Qe1 {
[%emt 0:00:00]} Qd6 {[%emt 0:00:00]} 47. Rb2 {[%emt 0:00:00]} Qd5 {[%emt 0:00:
00]} 48. Rxb4 {[%emt 0:00:00]} Nd2+ {[%emt 0:00:00]} 49. e4 {[%emt 0:00:00]}
Nxe4 {[%emt 0:00:00]} 50. Qe3 {[%emt 0:00:00]} Qxa2+ {[%emt 0:00:00]} 51. Kf3 {
[%emt 0:00:00]} Ng5+ {[%emt 0:00:00]} 52. Kg3 {[%emt 0:00:00]} Ne6 {[%emt 0:00:
00]} 53. Rb8+ {[%emt 0:00:00]} Kg7 {[%emt 0:00:05]} 54. Rb7+ {[%emt 0:00:00]}
Kg8 {[%emt 0:00:06]} 55. Qxh6 {[%emt 0:00:00]} 1-0